Cogmind - Beta 15 @@@ ROGUE MODE // 2025.07.10 @ 11:17:37 Player: Flufflewump Result: Destroyed by S-10 Pest with Light Assault Rifle Performance ------------- Evolutions (1) 500 Regions Visited (5) 1000 Robots Destroyed (42) 210 Value Destroyed (1285) 1285 Prototype IDs (4) 80 Alien Tech Used (0) 0 Bonus (235) 235 TOTAL SCORE: 3310 Bonus ------- Follower Combat Kills 35 Entered Garrisons 200 Cogmind --------- Core Integrity 0/400 Matter 290/300 Energy 125/125 System Corruption 1% Temperature Cool (0) Movement Treading (160) Location -9/Garrison Parts ------- > --- POWER (1) -------- Light Ion Engine > --- PROPULSION (3) --- Improved Treads Improved Treads > --- UTILITY (3) ------ Large Storage Unit Visual Processing Unit > --- WEAPON (2) ------- Light Assault Rifle Light Assault Rifle > --- INVENTORY (15) --- Heavy Ion Engine VSS Leg Armored Wheel Flight Unit Flight Unit Flight Unit Improved Heat Sink Sensor Array Signal Interpreter Salvage Targeting Computer Improved Targeting Computer Light Assault Rifle Peak State ------------ > --- POWER ------------ Light Nuclear Core > --- PROPULSION ------- VSS Leg VSS Leg VSS Leg > --- UTILITY ---------- Large Storage Unit Visual Processing Unit Light Armor Plating > --- WEAPON ----------- EM Shotgun Particle Gun > --- INVENTORY -------- Ion Engine Light Treads Light Treads Improved Treads Improved Aluminum Leg VSS Leg Improved Heat Sink Improved Targeting Computer Heavy EM Pulse Gun Beam Rifle Grenade Launcher [Rating: 22] Favorites ----------- Power Light Nuclear Core Engine Ion Engine Power Core Light Nuclear Core Propulsion VSS Leg Treads Light Treads Leg VSS Leg Wheel Armored Wheel Utility Visual Processing Unit Device Heat Sink Storage Large Storage Unit Processor Visual Processing Unit Protection Light Armor Plating Weapon Particle Gun Energy Gun Particle Gun Ballistic Gun Improved Assault Rifle Launcher Grenade Launcher Special Weapon Mining Laser Build | -11 -10 -10 -9 -9 -9 ------- Run | Yrd Mat Min Mat Sto Gar Slots Evolved 2 | . . . 2 . . Power . | . . . . . . Propulsion 1 | . . . 1 . . Utility 1 | . . . 1 . . Weapon . | . . . . . . Parts Attached 44 | . 6 7 24 . 7 Power 8 | . 2 2 3 . 1 Engine 5 | . 2 1 1 . 1 Core 3 | . . 1 2 . . Reactor . | . . . . . . Propulsion 18 | . 1 3 10 . 4 Treads 6 | . . . 2 . 4 Leg 11 | . 1 3 7 . . Wheel 1 | . . . 1 . . Hover . | . . . . . . Flight . | . . . . . . Utility 6 | . 1 1 4 . . Device 3 | . 1 1 1 . . Storage 1 | . . . 1 . . Processor 1 | . . . 1 . . Hackware . | . . . . . . Protection 1 | . . . 1 . . Artifact . | . . . . . . Weapon 12 | . 2 1 7 . 2 Energy Gun 7 | . 2 1 4 . . Energy Cannon . | . . . . . . Ballistic Gun 3 | . . . 1 . 2 Ballistic Cannon . | . . . . . . Launcher 1 | . . . 1 . . Special Weapon 1 | . . . 1 . . Impact Weapon . | . . . . . . Slashing Weapon . | . . . . . . Piercing Weapon . | . . . . . . Special Melee Weapon . | . . . . . . Unidentified Prototypes 1 | . . . 1 . . Parts Lost 21 | . 1 7 5 1 7 Power 5 | . 1 1 2 . 1 Propulsion 6 | . . 2 . . 4 Utility 2 | . . 1 1 . . Weapon 8 | . . 3 2 1 2 Highest Loss Streak 7 | . 1 7 2 1 6 To Critical Strikes . | . . . . . . Average Backups 8 | 6 5 4 9 13 13 Power 1 | 1 . . 1 1 1 Propulsion 4 | 4 2 1 3 6 6 Utility 2 | . . 1 2 5 5 Weapon 1 | 1 1 1 1 1 . Tool/Special . | . . . . . . Unused Backups 20 | . 5 . 3 . 12 Power 2 | . 1 . . . 1 Propulsion 8 | . 2 . 1 . 5 Utility 7 | . . . 2 . 5 Weapon 3 | . 2 . . . 1 Tool/Special . | . . . . . . Average Slot Usage (%) 86 | . 97 33 92 87 75 Engine 3 | . 14 4 . . 2 Core 6 | . . 1 9 11 6 Treads 4 | . . . 5 . 13 Leg 24 | . 28 13 26 33 14 Device 3 | . 11 2 1 . . Storage 9 | . 14 6 7 11 11 Processor 7 | . . . 9 11 11 Protection 4 | . . . 8 . . Energy Gun 17 | . 28 4 18 21 6 Ballistic Gun 2 | . . . 1 . 6 Peak Build Rating 22 | 6 7 7 22 21 20 Average Rating 14 | 6 6 2 18 20 15 On Entrance 10 | 6 6 7 4 21 19 Naked Turns 92 | . . 92 . . . Heaviest Build 34 | 10 15 15 34 31 31 Greatest Support 69 | 20 20 20 40 36 69 Greatest Overweight (x) 11 | . . 1 11 . 2 Average Overweight (x) . | . . . . . . Largest Inventory Capacity 15 | 8 8 8 15 15 15 Average Capacity 11 | 8 8 6 12 15 15 Most Carried 15 | 6 8 8 15 15 15 Average Carried 8 | 6 6 4 9 13 13 Final Capacity 15 | 8 8 5 15 15 15 Final Carried 15 | 6 8 3 12 15 12 Class Distribution -------------------- 51% | Scavenger-Mutant 48% | Mutant Dominant Class ---------------- Mutant | -10/Materials Mutant | -10/Mines Scavenger-Mutant | -9/Materials Scavenger-Mutant | -9/Storage Mutant | -9/Garrison Resources | -11 -10 -10 -9 -9 -9 ----------- Run | Yrd Mat Min Mat Sto Gar Matter Collected 774 | 200 60 52 377 . 85 Remotely . | . . . . . . Salvage Created 1238 | . 381 . 584 142 131 Parts 86 | . 21 . 39 11 15 Haulers Intercepted . | . . . . . . Recyclers Shooed 1 | . 1 . . . . Parts Field Recycled . | . . . . . . Retrieved Matter . | . . . . . . Parts Self-Destructed . | . . . . . . Prevented . | . . . . . . Kills | -11 -10 -10 -9 -9 -9 ------- Run | Yrd Mat Min Mat Sto Gar Combat Hostiles Destroyed 36 | . 9 . 13 5 9 Melee 1 | . . . . . 1 Guns 26 | . 4 . 12 5 5 AOE 7 | . 4 . . . 3 Classes Destroyed 6 | . 4 . 1 . 1 Builder 1 | . 1 . . . . Watcher 5 | . 3 . 2 . . Swarmer 15 | . 3 . 3 3 6 Grunt 16 | . 6 . 7 1 2 Duelist 1 | . . . . . 1 Sentry 4 | . . . 3 1 . Best Kill Streak 5 | . 5 . 4 4 4 Combat Bots Only 4 | . 3 . 4 4 4 Max Kills in Single Turn 3 | . 3 . 1 1 3 Gunslinging . | . . . . . . Exploded 3 | . 2 . . . 3 Melee 1 | . . . . . 1 Uniques/NPCs Destroyed . | . . . . . . Combat | -11 -10 -10 -9 -9 -9 -------- Run | Yrd Mat Min Mat Sto Gar Hostile Shots Fired 312 | . 39 60 74 13 126 Missed 68 | . 11 14 17 1 25 Hits 244 | . 28 46 57 12 101 Melee 5 | . . 5 . . . Projectile 239 | . 28 41 57 12 101 AOE 2 | . . 2 . . . Critical Strikes 3 | . . 2 1 . . Part Disruptions 1 | . . 1 . . . Damage Taken 3065 | . 365 771 870 115 944 Core 643 | . 81 158 139 10 255 Absorbed by Shields . | . . . . . . Core Remaining (%) 52 | 100 . 4 . . . Volleys Fired 134 | . 30 2 72 7 23 Largest 2 | . 2 1 2 2 2 Hottest 121 | . 80 40 121 121 65 Shots Fired 215 | . 60 2 112 13 28 Gun 208 | . 60 2 110 13 23 Cannon . | . . . . . . Launcher 7 | . . . 2 . 5 Special . | . . . . . . Kinetic 52 | . . . 32 . 20 Thermal 97 | . 36 1 44 13 3 Explosive 7 | . . . 2 . 5 Electromagnetic 59 | . 24 1 34 . . Robot Hit Streak 16 | . 11 3 16 5 8 Robot Miss Streak 4 | . 2 . 4 2 3 Penetration Max . | . . . . . . Secondary Targets 3 | . 2 . . 1 . Max Gunslinging Chain 1 | . 1 . . 1 . Shots Hit Robots 129 | . 42 2 64 8 13 Core Hits 59 | . 15 2 22 6 14 Critical Kills . | . . . . . . Critical Parts Destroyed . | . . . . . . Critical Strikes 2 | . . . 1 1 . Burn 2 | . . . 1 1 . Melee Attacks . | . . . . . . Impact . | . . . . . . Slashing . | . . . . . . Piercing . | . . . . . . Sneak Attacks . | . . . . . . Combat Hostiles . | . . . . . . Follow-up Attacks . | . . . . . . Damage Inflicted 2262 | . 727 44 992 119 380 Guns 1687 | . 464 20 988 119 96 Cannons . | . . . . . . Explosions 522 | . 263 . . . 259 Melee . | . . . . . . Ramming 53 | . . 24 4 . 25 Kinetic 493 | . . . 397 . 96 Thermal 1015 | . 541 10 345 119 . Explosive 259 | . . . . . 259 Electromagnetic 442 | . 186 10 246 . . Impact . | . . . . . . Slashing . | . . . . . . Piercing . | . . . . . . Highest Corruption 1 | . . 1 1 1 1 Average Corruption 1 | . . 1 1 1 1 Corruption Purged . | . . . . . . Corruption Blocked . | . . . . . . Effects 8 | . . 1 4 . 3 Message Errors 3 | . . 1 1 . 1 Energy Discharges 1 | . . . . . 1 Parts Rejected 1 | . . . . . 1 Data Loss (minor) 1 | . . . 1 . . Data Loss (major) 1 | . . . 1 . . Weapon Failures 1 | . . . 1 . . Overload Shots . | . . . . . . Overflow Damage 28 | . 12 . . . 16 Projectiles . | . . . . . . Explosions 28 | . 12 . . . 16 Melee . | . . . . . . Knockbacks . | . . . . . . Impact . | . . . . . . Kinetic . | . . . . . . Secondary . | . . . . . . Self-Inflicted Damage 189 | . 55 . . . 134 Shots 3 | . 1 . . . 2 Rammed 11 | . . . 1 . 10 Targets Rammed 15 | . . 4 1 . 10 Kicked 4 | . . 4 . . . Crushed . | . . . . . . Highest Temperature 413 | . 186 20 413 351 66 Average Temperature 108 | . 72 8 113 163 35 Received Heat Transfer 828 | . 135 291 369 21 12 Effects 3 | . . . 2 1 . Energy Bleed 2 | . . . 1 1 . Interference 1 | . . . 1 . . Siege Activations . | . . . . . . Martial Activations . | . . . . . . Shielding Activations . | . . . . . . Robots Disrupted . | . . . . . . Combat Hostiles . | . . . . . . Robots Corrupted . | . . . . . . Combat Hostiles . | . . . . . . Parts Fried . | . . . . . . Impact Corruptions . | . . . . . . Robots Melted 2 | . 1 . 1 . . Combat Hostiles 2 | . 1 . 1 . . Parts Melted 2 | . 2 . . . . Heat Transferred 2145 | . 825 25 925 370 . Parts Sabotaged . | . . . . . . Parts Stolen . | . . . . . . Parts Stripped . | . . . . . . Power Chain Reactions 3 | . 3 . . . . Alert | -11 -10 -10 -9 -9 -9 ------- Run | Yrd Mat Min Mat Sto Gar Maximum Alert Level 1 | . . . . . 1 Low Security (%) 91 | 100 100 100 100 100 37 Level 1 8 | . . . . . 62 Level 2 . | . . . . . . Level 3 . | . . . . . . Level 4 . | . . . . . . Level 5 . | . . . . . . High Security . | . . . . . . Max Security . | . . . . . . Peak Influence 330 | . 126 94 83 119 330 Initial 69 | . . 42 32 29 69 Average 63 | . 34 42 34 86 226 Influence Increases 1437 | . 313 124 531 138 331 Destroy 0b10 Robot/C 740 | . 180 20 260 100 180 Destroy 0b10 Robot/NC 30 | . 20 . 10 . . Destroy Leader 140 | . 36 10 64 20 10 Allied During Kill 4 | . . 4 . . . Successful Hack 50 | . . . 32 18 . Disable Machine 60 | . 45 . 15 . . Anti-Garrison Action 50 | . . . . . 50 Destroy Structure 93 | . 17 . 15 . 61 Partial Spotted 45 | . 15 . 30 . . Lose Combat Pursuer 225 | . . 90 105 . 30 Influence Decreases 1107 | . 203 150 545 101 108 Entered New Map 199 | . . 68 52 41 38 Time Decay 744 | . 201 50 443 50 . Lost Part 164 | . 2 32 50 10 70 Squads Dispatched 2 | . 1 . . 1 . Investigation . | . . . . . . Extermination . | . . . . . . Reinforcement 2 | . 1 . . 1 . Assault . | . . . . . . Garrison . | . . . . . . Intercept . | . . . . . . Searches Triggered . | . . . . . . Construction Impeded . | . . . . . . Haulers Reinforced . | . . . . . . Active Scanning Responses . | . . . . . . Cargo Convoy Interrupts . | . . . . . . Stealth | -11 -10 -10 -9 -9 -9 --------- Run | Yrd Mat Min Mat Sto Gar Distress Signals 4 | . 2 . 1 1 . Communications Jammed . | . . . . . . Distress Signals . | . . . . . . Times Spotted 87 | . 12 28 27 8 12 Peak Tracking Total 18 | . 4 18 6 5 5 Tactical Retreats 11 | . . 3 7 . 1 Traps | -11 -10 -10 -9 -9 -9 ------- Run | Yrd Mat Min Mat Sto Gar Traps Triggered 3 | . . . 3 . . Indirectly . | . . . . . . Trap Hack Attempts . | . . . . . . Triggered . | . . . . . . Disarmed . | . . . . . . Reprogrammed . | . . . . . . Reused . | . . . . . . Traps Extracted . | . . . . . . Installed . | . . . . . . Triggered . | . . . . . . Machines | -11 -10 -10 -9 -9 -9 ---------- Run | Yrd Mat Min Mat Sto Gar Machines Disabled 6 | . 3 . 1 . 2 Max in Single Turn 2 | . 1 . 1 . 2 Phase Generator 1 | . . . . . 1 Machines Repaired . | . . . . . . Machines Dismantled . | . . . . . . Machines Sabotaged . | . . . . . . Overloaded Fab Kills . | . . . . . . Hacking | -11 -10 -10 -9 -9 -9 --------- Run | Yrd Mat Min Mat Sto Gar Machines Accessed 12 | . 2 . 7 3 . Terminals 9 | . 2 . 6 1 . Fabricators . | . . . . . . Repair Stations . | . . . . . . Recycling Units 2 | . . . 1 1 . Scanalyzers . | . . . . . . Garrison Access 1 | . . . . 1 . Total Hacks 30 | . 4 . 19 7 . Successful 11 | . 1 . 6 4 . Failed 19 | . 3 . 13 3 . Catastrophic 5 | . 1 . 4 . . Database Lockouts . | . . . . . . Manual 19 | . 3 . 12 4 . Terminals 26 | . 4 . 17 5 . Fabricators . | . . . . . . Repair Stations . | . . . . . . Recycling Units 3 | . . . 2 1 . Scanalyzers . | . . . . . . Garrison Access 1 | . . . . 1 . Terminal Hacks 7 | . 1 . 4 2 . Prototype ID Bank 2 | . . . 2 . . Branch Access Points 2 | . . . 1 1 . Recycling Unit Index 1 | . . . . 1 . Locate Traps 1 | . . . 1 . . Hauler Manifests 1 | . 1 . . . . Fabricator Hacks . | . . . . . . Repair Station Hacks . | . . . . . . Recycling Unit Hacks 3 | . . . 2 1 . Report Inventory 1 | . . . 1 . . Retrieve Components 2 | . . . 1 1 . Scanalyzer . | . . . . . . Garrison Access Hacks 1 | . . . . 1 . Unlock Access 1 | . . . . 1 . Unauthorized Hacks . | . . . . . . Terminals . | . . . . . . Fabricators . | . . . . . . Repair Stations . | . . . . . . Recycling Units . | . . . . . . Scanalyzers . | . . . . . . Garrison Access . | . . . . . . Data Cores Recovered . | . . . . . . Used . | . . . . . . Hacking Detections 10 | . 2 . 6 2 . Full Trace Events . | . . . . . . Feedback Events . | . . . . . . Feedback Blocked . | . . . . . . Robot Schematics Acquired . | . . . . . . Robots Built . | . . . . . . Authchips . | . . . . . . Time . | . . . . . . Total Robot Build Rating . | . . . . . . Part Schematics Acquired . | . . . . . . Parts Built . | . . . . . . Authchips . | . . . . . . Time . | . . . . . . Total Part Build Rating . | . . . . . . Parts Repaired . | . . . . . . Time . | . . . . . . Parts Recycled . | . . . . . . Recycled Matter . | . . . . . . Retrieved Matter . | . . . . . . Retrieved Components 8 | . . . 2 6 . Parts Scanalyzed . | . . . . . . Part Schematics Acquired . | . . . . . . Parts Damaged . | . . . . . . Bothacking | -11 -10 -10 -9 -9 -9 ------------ Run | Yrd Mat Min Mat Sto Gar Used RIF Installer . | . . . . . . Robots Hacked . | . . . . . . Non-combat . | . . . . . . Combat . | . . . . . . Robot Hacks Applied . | . . . . . . Relay Couplers Released . | . . . . . . Fabnet Peak Effective % . | . . . . . . Robots Rewired . | . . . . . . Allies Hacked . | . . . . . . Hacks Repelled . | . . . . . . Allies | -11 -10 -10 -9 -9 -9 -------- Run | Yrd Mat Min Mat Sto Gar Total Allies 2 | . . 2 . . . Largest Group 2 | . . 2 . . . Highest-Rated Group 41 | . . 41 . . . Highest-Rated Ally 31 | . . 31 . . . Total Orders . | . . . . . . Ally Attacks 8 | . . 8 . . . Total Damage 106 | . . 106 . . . Kills 1 | . . 1 . . . Allies Corrupted . | . . . . . . Allies Melted . | . . . . . . Intel | -11 -10 -10 -9 -9 -9 ------- Run | Yrd Mat Min Mat Sto Gar Active Infowar (turns) 1655 | . . 12 1164 106 373 Optics 1643 | . . . 1164 106 373 Terrain 12 | . . 12 . . . Robot Analysis Total . | . . . . . . Derelict Logs Recovered 1 | . . 1 . . . Drone Launches . | . . . . . . Drone Recoveries . | . . . . . . Exploration | -11 -10 -10 -9 -9 -9 ------------- Run | Yrd Mat Min Mat Sto Gar Turns Passed 2732 | 5 525 192 1522 115 373 Spaces Moved 1904 | 5 324 233 1054 98 190 Core 170 | . . 169 1 . . Treads 274 | . . . 206 . 68 Legs 1422 | 5 324 64 809 98 122 Wheels 38 | . . . 38 . . Hover . | . . . . . . Flight . | . . . . . . Fastest Speed 50 | 120 120 50 90 90 90 Average Speed 107 | 120 120 70 105 90 155 Slowest Speed 600 | 120 120 120 600 90 270 Overloaded Moves . | . . . . . . Propulsion Burnouts . | . . . . . . Robots Hopped . | . . . . . . Potential Cave-ins . | . . . . . . Cave-ins Triggered . | . . . . . . Exploration Rate (%) 37 | 2 56 61 64 17 25 Regions Visited 5 Branch Regions 2 Pre-discovered Areas 1 | . . 1 . . . Known Exits Taken 2 | . . . 1 1 . Unknown Exits Taken 3 | 1 1 1 . . . Scrap Searched 1 | . . 1 . . . Spaces Dug . | . . . . . . Terrain Destroyed 127 | . 15 . 13 . 99 Melee . | . . . . . . Projectile . | . . . . . . AOE 127 | . 15 . 13 . 99 Terrain Rammed . | . . . . . . Walls Destroyed . | . . . . . . Machines Disabled . | . . . . . . Actions | -11 -10 -10 -9 -9 -9 --------- Run | Yrd Mat Min Mat Sto Gar Total 2370 | 4 404 258 1356 111 237 Wait 202 | . 24 13 157 4 4 Move 1899 | 4 323 232 1053 97 190 Hop . | . . . . . . Pick Up 29 | . 8 . 16 3 2 Fast Attach 29 | . 5 2 19 . 3 Attach 18 | . 1 5 7 . 5 Detach 16 | . 4 . 12 . . Swap 2 | . . . 2 . . Drop 26 | . 9 . 17 . . Fire 134 | . 30 2 72 7 23 Melee . | . . . . . . Ram . | . . . . . . Kick 4 | . . 4 . . . Crush 11 | . . . 1 . 10 Escape Stasis . | . . . . . . Rewire . | . . . . . . Trap . | . . . . . . Miscellaneous . | . . . . . . Route ------- -11/Scrapyard -10/Materials (discovered 3 exits: *Mat x2 / [*Min]) -10/Mines -9/Materials (discovered 4 exits: [*Mat x2] / *Min / *Sto) -9/Storage (discovered 2 exits: Rec / Gar) -9/Garrison History --------- Turn | Location | Event 1 | -11/Scrapyard | Discovered new exit (range 3) 6 | -11/Scrapyard | Entered Materials 232 | -10/Materials | Discovered new exit (range 6) 307 | -10/Materials | Build established: Mutant 439 | -10/Materials | Discovered new exit (range 6) 477 | -10/Materials | Discovered new exit (range 9) 531 | -10/Materials | Entered Mines 532 | -10/Mines | Assembled infested the area 537 | -10/Mines | Assisted by a Guerilla fighting off Assembled 563 | -10/Mines | Core integrity fell below 50% 573 | -10/Mines | Core integrity fell below 20% 598 | -10/Mines | Lost 7 parts (1p2n1u3w) 611 | -10/Mines | Released all parts (5) 660 | -10/Mines | Learned location of Storage (-9) 703 | -10/Mines | Discovered new exit (range 9) 723 | -10/Mines | Entered Materials 723 | -9/Materials | Evolved 2 slots: Propulsion x1, Utility x1 1073 | -9/Materials | Discovered new exit (range 6) 1140 | -9/Materials | Build established: Scavenger-Mutant 1152 | -9/Materials | Discovered new exit (range 5) 1897 | -9/Materials | Discovered new exit (range 17) 1909 | -9/Materials | Identified exit to Mines 1909 | -9/Materials | Identified exit to Storage 2245 | -9/Materials | Entered Storage 2309 | -9/Storage | Identified exit to Recycling 2321 | -9/Storage | Identified exit to Garrison 2360 | -9/Storage | Entered Garrison 2502 | -9/Garrison | Phase Generator disabled 2503 | -9/Garrison | Core integrity fell below 50% 2560 | -9/Garrison | Triggered checkpoint 2579 | -9/Garrison | Core integrity fell below 20% 2642 | -9/Garrison | Lost 6 parts (1p3n2w) 2733 | -9/Garrison | Destroyed by S-10 Pest with Light Assault Rifle Last Messages --------------- 02589_ Slammed into S-10 Pest. 02591_ S-10 Pest destroyed. 02591_ VSS Leg destroyed. 02592_ Slammed into S-10 Pest. 02605_ S-10 Pest destroyed. [Achievement: Fist Fight] 02608_ Acquired Lgt. Assault Rifle. 02611_ Imp. Treads destroyed. 02615_ S-10 Pest destroyed. 02629_ Acquired Lgt. Assault Rifle. 02630_ Acquired 19 matter. 02631_ System corrupted: Energy discharge (-24). 02633_ Acquired 5 matter. 02635_ Acquired 11 matter. 02644_ Acquired Flight Unit. 02648_ Acquired Lgt. Assault Rifle. 02651_ Acquired Lgt. Ion Engine. 02652_ Acquired 10 matter. 02721_ Imp. Treads destroyed. 02721_ S-10 Pest destroyed. Map ----- +----------------------------------------------------+ | ?????????????????????????????????????????????????? | | ?????????????????????????????????????????????????? | | ?????????????????????????????????????????????????? | | ?????????????????????????????????????????????????? | | ?????????????????????????????????????????????????? | | ?????????????????????????????????????????????????? | | ?????????????????????????????????????????????????? | | ?????????????????????????????????????????????????? | | ?????????????????????????? ?????????????????????? | | ?????????????????????????? ?????????????????????? | | ?????????????????????????? #????????????????????? | | ?????????????????????????? #????????????????????? | | ?????????????????????????? #????????????????????? | | ?????????????????????????? #?????????#??????????? | | ????????????????????????## ##??""### #??????????? | | ???????????????????????? ?? ???????????? | | ???????????????????????? ?? ????????????? | | ???????????????????????? ?? ?? ?????????? | | ????????????????????????# #? #?? #?????????? | | ?????#####????????????### ## ## #?????????? | | ???### # ####????????? "?????????? | | ??## ##???????? "?????????? | | ?## ##????????s ???????????? | | ?# #????????[*= ? ?????????????? | | ## #????????#%s #? #??????????????? | | # ##########@ ##^ ^ ## ##????????? | | # # *%! ??????? | | # = = ??????? | | # ######## ??????? | | ## # ##???## ###""""## ####???????? | | ## # # #????# #?????????????????????? | | # ##????# #?????????????????????? | | ## # ######### #?????????????????????? | | ### ## #?????????????????????? | | #?### # ####= ## ########?????????????????????? | | ##???## ###???# ## #????????????????????????????? | | ??????# #?????# ## #????????????????????????????? | | ??????# #?????# ^## #????????????????????????????? | | ?????## ####### ## #????????????????????????????? | | ?????# ## ##???????????????????????????? | | ?????# #???????????????????????????? | | ?????# ##### ### #???????????????????????????? | | ?????# #???# #?# ##???????????????????????????? | | ?????#####???# #?# #??#######??????????????????? | | ?????????????# #?# ##??#"""""#??????????????????? | | ?????????????# ### =##### ##??????????????????? | | ?????????????# * %%= % #??????????????????? | | ?????????????### * ##########??????????????????? | | ???????????????# #???????????????????????????? | | ???????????????#######???????????????????????????? | +----------------------------------------------------+ Best States ------------- Heat Dissipation 38 Energy Generation 14 Energy Capacity 250 Matter Stores 300 Matter Capacity 300 Sight Range 18 Terrain Scan Range 14 Terrain Scan Density 10 Armor Coverage 150 Evasion (%) 57 Recoil Reduction 3 Item Schematics ----------------- None Robot Schematics ------------------ None Fabricated ------------ Nothing Repaired ---------- Nothing Alien Tech Used ----------------- None Achievements -------------- Fist Fight Challenges ------------ None Game ------ Seed FieldthrustMassProtomatter Manual? 0 Play Time 00:39:31 Cumulative 22.5 hours Start 2025.07.10 @ 08:01:30 End 2025.07.10 @ 11:17:37 Sessions 3 Manual Loads 0 Difficulty Rogue Special Mode None Game No. 23 Rogue 23 Adventurer 0 Explorer 0 Win Type - Total 0 Types 0/0/0/0/0/0/0/0/0/0 Lore% 20 Gallery% 27 Achievement% 28 Wizard Run 0 Options --------- Layout 0 ASCII 1 Keyboard 1 Movement Vi Keybinds 1 Fullscreen 1 Font 18/SmallcapsGlow Map View 76x50 Zoom Use 0% Tactical HUD 1 Map Filters NONE Filters NONE Steam 1 RUN: 051e586a-b4ab-4ed1-a2a2-3117762606e0